Cogmind - Beta 16.1 @@@ ROGUE MODE // 2026.03.28 @ 09:59:51 Player: RHAHI Result: Destroyed by D-53 Grenadier with Mini Grenade Launcher Performance ------------- Evolutions (0) 0 Regions Visited (2) 400 Robots Destroyed (20) 100 Value Destroyed (451) 451 Prototype IDs (3) 60 Alien Tech Used (0) 0 Bonus (0) 0 TOTAL SCORE: 1011 Bonus ------- None Cogmind --------- Core Integrity 0/250 Matter 295/300 Energy 80/100 System Corruption 3% Temperature Cool (0) Movement Treading (320) Ox2 Location -10/Mines Parts ------- > --- POWER (1) -------- (None) > --- PROPULSION (2) --- Light Treads > --- UTILITY (2) ------ High-capacity Storage Unit Hacking Suite > --- WEAPON (2) ------- Light Cannon > --- INVENTORY (20) --- Ion Engine Ion Engine Aluminum Leg Aluminum Leg Medium Storage Unit Medium Matter Pod (75) Structural Scanner Seismic Detector Light Armor Plating Light Armor Plating Light Armor Plating Peak State ------------ > --- POWER ------------ Light Nuclear Core > --- PROPULSION ------- Aluminum Leg Aluminum Leg > --- UTILITY ---------- Medium Storage Unit Hacking Suite > --- WEAPON ----------- EM Pulse Gun Assault Rifle > --- INVENTORY -------- Ion Engine Ion Engine Light Treads Light Treads Huge Storage Unit Medium Matter Pod Seismic Detector Light Armor Plating Light Armor Plating Light Armor Plating [Rating: 12] Favorites ----------- Power Ion Engine Engine Ion Engine Power Core Light Nuclear Core Propulsion Aluminum Leg Treads Light Treads Leg Aluminum Leg Wheel Wheel Utility Seismic Detector Device Seismic Detector Storage Medium Storage Unit Hackware Hacking Suite Protection Light Armor Plating Weapon EM Pulse Gun Energy Gun EM Pulse Gun Ballistic Gun Assault Rifle Special Weapon Mining Laser Build | -11 -10 -10 ------- Run | Yrd Mat Min Slots Evolved . | . . . Power . | . . . Propulsion . | . . . Utility . | . . . Weapon . | . . . Parts Attached 23 | 5 16 2 Power 4 | . 4 . Engine 3 | . 3 . Core 1 | . 1 . Reactor . | . . . Propulsion 5 | 2 3 . Treads 2 | 2 . . Leg 2 | . 2 . Wheel 1 | . 1 . Hover . | . . . Flight . | . . . Utility 7 | 1 5 1 Device 2 | 1 1 . Storage 3 | . 2 1 Processor . | . . . Hackware 1 | . 1 . Protection 1 | . 1 . Artifact . | . . . Weapon 7 | 2 4 1 Energy Gun 3 | . 3 . Energy Cannon . | . . . Ballistic Gun 2 | 2 . . Ballistic Cannon 1 | . . 1 Launcher . | . . . Special Weapon 1 | . 1 . Impact Weapon . | . . . Slashing Weapon . | . . . Piercing Weapon . | . . . Special Melee Weapon . | . . . Unidentified Prototypes . | . . . Parts Lost 5 | . 1 4 Power 1 | . . 1 Propulsion 1 | . . 1 Utility . | . . . Weapon 3 | . 1 2 Highest Loss Streak 4 | . 1 4 To Critical Strikes . | . . . Average Backups 7 | 2 7 11 Power 2 | 1 2 2 Propulsion 2 | 1 2 2 Utility 2 | . 2 6 Weapon 1 | . 1 1 Tool/Special . | . . . Unused Backups 6 | . 1 5 Power 2 | . 1 1 Propulsion . | . . . Utility 4 | . . 4 Weapon . | . . . Tool/Special . | . . . Average Slot Usage (%) 98 | . 98 98 Engine 9 | . 10 . Core 3 | . 2 13 Treads 9 | . 7 25 Leg 17 | . 19 2 Wheel 1 | . 1 . Device 11 | . 12 . Storage 12 | . 12 14 Hackware 2 | . 1 14 Energy Gun 13 | . 13 13 Ballistic Gun 9 | . 9 14 Special Weapon 4 | . 5 . Peak Build Rating 12 | 5 12 12 Average Rating 8 | 3 8 11 On Entrance 5 | . 5 12 Avg Prop Armor Cover (%) 18 | 25 16 . Naked Turns . | . . . Heaviest Build 90 | 5 90 49 Greatest Support 40 | 3 40 40 Greatest Overweight (x) 8 | 1 8 1 Average Overweight (x) 1 | . 1 . Largest Inventory Capacity 25 | 5 25 20 Average Capacity 13 | 5 12 19 Most Carried 12 | 5 11 12 Average Carried 7 | 3 7 11 Final Capacity 20 | 5 10 20 Final Carried 11 | 5 10 11 Class Distribution -------------------- 100% | Mutant Dominant Class ---------------- Mutant | -10/Materials Mutant | -10/Mines Resources | -11 -10 -10 ----------- Run | Yrd Mat Min Matter Collected 733 | 207 440 86 Remotely . | . . . Salvage Created 700 | 26 674 . Parts 40 | 2 38 . Haulers Intercepted 2 | . 2 . Recyclers Shooed . | . . . Parts Field Recycled . | . . . Retrieved Matter . | . . . Parts Self-Destructed . | . . . Prevented . | . . . Parts Restored . | . . . Kills | -11 -10 -10 ------- Run | Yrd Mat Min Combat Hostiles Destroyed 12 | . 12 . Guns 12 | . 12 . Classes Destroyed 7 | 1 6 . Worker 1 | . 1 . Tunneler 1 | 1 . . Hauler 2 | . 2 . Operator 1 | . 1 . Watcher 3 | . 3 . Swarmer 3 | . 3 . Grunt 9 | . 9 . Best Kill Streak 5 | 1 5 . Combat Bots Only 5 | . 5 . Max Kills in Single Turn 2 | 1 2 . Gunslinging 1 | . 1 . Exploded . | . . . Melee . | . . . Uniques/NPCs Destroyed . | . . . Combat | -11 -10 -10 -------- Run | Yrd Mat Min Hostile Shots Fired 92 | . 80 12 Missed 24 | . 24 . Hits 68 | . 56 12 Projectile 68 | . 56 12 AOE 12 | . . 12 Critical Strikes 2 | . 2 . Damage Taken 1065 | . 644 421 Core 261 | . 68 193 Absorbed by Shields . | . . . Regen/Repaired (Parts) 17 | . 17 . Core Remaining (%) 100 | 100 . . Volleys Fired 62 | 5 57 . Largest 2 | 2 2 . Hottest 100 | 40 100 . Shots Fired 114 | 10 104 . Gun 109 | 10 99 . Cannon . | . . . Launcher . | . . . Special 5 | . 5 . Kinetic 70 | 10 60 . Thermal 16 | . 16 . Explosive . | . . . Electromagnetic 28 | . 28 . Robot Hit Streak 10 | 3 10 . Robot Miss Streak 3 | 2 3 . Penetration Max . | . . . Secondary Targets 4 | . 4 . Max Gunslinging Chain 1 | . 1 . Shots Hit Robots 73 | 7 66 . Core Hits 29 | 2 27 . Critical Kills 1 | . 1 . Critical Parts Destroyed . | . . . Critical Strikes 1 | . 1 . Destroy 1 | . 1 . Melee Attacks . | . . . Impact . | . . . Slashing . | . . . Piercing . | . . . Sneak Attacks . | . . . Combat Hostiles . | . . . Follow-up Attacks . | . . . Damage Inflicted 1122 | 106 1004 12 Guns 1085 | 106 979 . Cannons . | . . . Explosions 23 | . 23 . Melee . | . . . Ramming 14 | . 2 12 Kinetic 731 | 106 625 . Thermal 119 | . 119 . Explosive . | . . . Electromagnetic 258 | . 258 . Impact . | . . . Slashing . | . . . Piercing . | . . . Highest Corruption 3 | . 3 3 Average Corruption 2 | . 1 3 Corruption Purged . | . . . Corruption Blocked . | . . . Effects 10 | . 7 3 Message Errors 4 | . 2 2 Matter Fused 2 | . 2 . Heat Flow Errors 3 | . 2 1 Data Loss (minor) 1 | . 1 . Overload Shots . | . . . Overflow Damage . | . . . Projectiles . | . . . Explosions . | . . . Melee . | . . . Knockbacks . | . . . Impact . | . . . Kinetic . | . . . Secondary . | . . . Self-Inflicted Damage . | . . . Shots . | . . . Rammed 1 | . . 1 Targets Rammed 4 | . 3 1 Kicked 3 | . 3 . Crushed . | . . . Highest Temperature 249 | . 249 230 Average Temperature 67 | . 63 118 Received Heat Transfer 369 | . 369 . Siege Activations . | . . . Martial Activations . | . . . Shielding Activations . | . . . Robots Disrupted . | . . . Combat Hostiles . | . . . Robots Corrupted 1 | . 1 . Combat Hostiles . | . . . Parts Fried 2 | . 2 . Impact Corruptions . | . . . Robots Melted . | . . . Combat Hostiles . | . . . Parts Melted . | . . . Heat Transferred 272 | . 272 . Parts Sabotaged . | . . . Parts Stolen . | . . . Parts Stripped . | . . . Power Chain Reactions 1 | . 1 . Alert | -11 -10 -10 ------- Run | Yrd Mat Min Maximum Alert Level . | . . . Low Security (%) 100 | 100 100 100 Level 1 . | . . . Level 2 . | . . . Level 3 . | . . . Level 4 . | . . . Level 5 . | . . . High Security . | . . . Max Security . | . . . Peak Influence 128 | 5 128 39 Initial 39 | . . 39 Average 34 | 1 38 9 Influence Increases 471 | 5 466 . Destroy 0b10 Robot/C 240 | . 240 . Destroy 0b10 Robot/NC 40 | 5 35 . Destroy Leader 60 | . 60 . Successful Hack 17 | . 17 . Select Force Hacks 60 | . 60 . Destroy Structure 9 | . 9 . Lose Combat Pursuer 45 | . 45 . Influence Decreases 471 | 5 365 101 Entered New Map 62 | . . 62 Time Decay 399 | 5 355 39 Lost Part 10 | . 10 . Squads Dispatched 4 | . 4 . Investigation 3 | . 3 . Extermination . | . . . Reinforcement 1 | . 1 . Assault . | . . . Garrison . | . . . Intercept . | . . . Searches Triggered . | . . . Construction Impeded . | . . . Haulers Reinforced . | . . . Active Scanning Responses . | . . . Cargo Convoy Interrupts . | . . . Stealth | -11 -10 -10 --------- Run | Yrd Mat Min Distress Signals 2 | . 2 . Communications Jammed . | . . . Distress Signals . | . . . Times Spotted 29 | . 26 3 Peak Tracking Total 4 | . 4 2 Tactical Retreats 2 | . 2 . Traps | -11 -10 -10 ------- Run | Yrd Mat Min Traps Triggered 3 | . 3 . Indirectly . | . . . Trap Hack Attempts . | . . . Triggered . | . . . Disarmed . | . . . Reprogrammed . | . . . Reused . | . . . Traps Extracted . | . . . Installed . | . . . Triggered . | . . . Machines | -11 -10 -10 ---------- Run | Yrd Mat Min Machines Disabled 1 | . 1 . Max in Single Turn 1 | . 1 . Machines Repaired . | . . . Machines Dismantled . | . . . Machines Sabotaged . | . . . Overloaded Fab Kills . | . . . Hacking | -11 -10 -10 --------- Run | Yrd Mat Min Machines Accessed 10 | . 10 . Terminals 7 | . 7 . Fabricators . | . . . Repair Stations 1 | . 1 . Recycling Units 2 | . 2 . Scanalyzers . | . . . Garrison Access . | . . . Total Hacks 30 | . 30 . Successful 18 | . 18 . Failed 11 | . 11 . Catastrophic . | . . . Database Lockouts 1 | . 1 . Manual 21 | . 21 . Terminals 22 | . 22 . Fabricators . | . . . Repair Stations 5 | . 5 . Recycling Units 3 | . 3 . Scanalyzers . | . . . Garrison Access . | . . . Terminal Hacks 4 | . 4 . Robot Schematic 1 | . 1 . Prototype ID Bank 2 | . 2 . Locate Traps 1 | . 1 . Fabricator Hacks . | . . . Repair Station Hacks 2 | . 2 . Scan Component 1 | . 1 . Repair 1 | . 1 . Recycling Unit Hacks . | . . . Scanalyzer . | . . . Garrison Access Hacks . | . . . Unauthorized Hacks 12 | . 12 . Terminals 10 | . 10 . Track 1 | . 1 . Assimilate 1 | . 1 . Botnet 2 | . 2 . Operators 1 | . 1 . Skim 5 | . 5 . Fabricators . | . . . Repair Stations . | . . . Recycling Units 2 | . 2 . Tunnel 2 | . 2 . Scanalyzers . | . . . Garrison Access . | . . . Data Cores Recovered . | . . . Used . | . . . Hacking Detections 9 | . 9 . Full Trace Events . | . . . Feedback Events . | . . . Feedback Blocked . | . . . Robot Schematics Acquired 1 | . 1 . Robots Built . | . . . Authchips . | . . . Time . | . . . Total Robot Build Rating . | . . . Part Schematics Acquired . | . . . Parts Built . | . . . Authchips . | . . . Time . | . . . Total Part Build Rating . | . . . Part Studies Acquired . | . . . Parts Repaired 1 | . 1 . Time 26 | . 26 . Parts Recycled . | . . . Recycled Matter . | . . . Retrieved Matter . | . . . Retrieved Components . | . . . Parts Scanalyzed . | . . . Part Schematics Acquired . | . . . Parts Damaged . | . . . Bothacking | -11 -10 -10 ------------ Run | Yrd Mat Min Used RIF Installer . | . . . Robots Hacked . | . . . Non-combat . | . . . Combat . | . . . Robot Hacks Applied . | . . . Relay Couplers Released . | . . . Fabnet Peak Effective % . | . . . Robots Rewired . | . . . Allies Hacked . | . . . Hacks Repelled . | . . . Allies | -11 -10 -10 -------- Run | Yrd Mat Min Total Allies 1 | . 1 . Largest Group 1 | . 1 1 Highest-Rated Group 10 | . 10 10 Highest-Rated Ally 10 | . 10 10 Total Orders 1 | . . 1 STAY 1 | . . 1 Ally Attacks . | . . . Total Damage . | . . . Kills . | . . . Allies Corrupted . | . . . Allies Melted . | . . . Intel | -11 -10 -10 ------- Run | Yrd Mat Min Active Infowar (turns) 1591 | 11 1580 . Seismic 1591 | 11 1580 . Robot Analysis Total . | . . . Derelict Logs Recovered . | . . . Drone Launches . | . . . Drone Recoveries . | . . . Exploration | -11 -10 -10 ------------- Run | Yrd Mat Min Turns Passed 2120 | 61 1855 204 Spaces Moved 754 | 39 631 84 Core 98 | 39 59 . Treads 164 | . 86 78 Legs 419 | . 413 6 Wheels 73 | . 73 . Hover . | . . . Flight . | . . . Fastest Speed 50 | 50 95 120 Average Speed 156 | 88 150 231 Slowest Speed 320 | 100 320 240 Overloaded Moves . | . . . Propulsion Burnouts . | . . . Robots Hopped . | . . . Potential Cave-ins . | . . . Cave-ins Triggered . | . . . Exploration Rate (%) 38 | 2 96 17 Regions Visited 2 Branch Regions 1 Pre-discovered Areas 2 | . 2 . Known Exits Taken 1 | . 1 . Unknown Exits Taken 1 | 1 . . Scrap Searched 1 | . . 1 Spaces Dug 5 | . 5 . Terrain Destroyed 8 | . 8 . Melee . | . . . Projectile 5 | . 5 . AOE 3 | . 3 . Terrain Rammed . | . . . Walls Destroyed . | . . . Machines Disabled . | . . . Actions | -11 -10 -10 --------- Run | Yrd Mat Min Total 1561 | 53 1416 92 Wait 686 | . 686 . Move 752 | 38 630 84 Hop . | . . . Pick Up 18 | 5 11 2 Fast Attach 10 | 5 5 . Attach 3 | . 2 1 Detach 1 | . 1 . Swap 15 | . 12 3 Drop 10 | . 9 1 Fire 62 | 5 57 . Melee . | . . . Ram . | . . . Kick 3 | . 3 . Crush 1 | . . 1 Escape Stasis . | . . . Rewire . | . . . Trap . | . . . Miscellaneous . | . . . Route ------- -11/Scrapyard -10/Materials (discovered 5 exits: *Mat x3 / *Min / Sub) -10/Mines (discovered 1 exit: [*Exi]) History --------- Turn | Location | Event 6 | -11/Scrapyard | Discovered new exit (range 15) 62 | -11/Scrapyard | Entered Materials 294 | -10/Materials | Repaired Seismic Detector 315 | -10/Materials | Build established: Mutant 366 | -10/Materials | Discovered new exit (range 7) 648 | -10/Materials | Discovered new exit (range 16) 1580 | -10/Materials | Discovered new exit (range 15) 1597 | -10/Materials | Learned Storage emergency access door positions 1721 | -10/Materials | Discovered new exit (range 9) 1728 | -10/Materials | Learned 4 Recycling zone layouts 1773 | -10/Materials | Central database locked down 1779 | -10/Materials | Learned Storage emergency access door positions 1820 | -10/Materials | Identified exit to Materials 1820 | -10/Materials | Identified exit to Mines 1871 | -10/Materials | Identified exit to Subcaves 1899 | -10/Materials | Learned 2 Storage zone layouts 1917 | -10/Materials | Entered Mines 1917 | -10/Mines | Accompanied by 1 ally 1950 | -10/Mines | Deemed a non-threat by the Exiles lab entrance 1953 | -10/Mines | Discovered new exit (range 5) 2088 | -10/Mines | Assembled infested the area 2117 | -10/Mines | Core integrity fell below 50% 2120 | -10/Mines | Core integrity fell below 20% 2121 | -10/Mines | Destroyed by D-53 Grenadier with Mini Grenade Launcher Last Messages --------------- 01944_ FKKI2BFZEUIL QU0MF